fUSD/lending_fUSD_20250505
["ID","MTS","AMOUNT","RATE_DAILY","PERIOD"]
[359982335,1746461655028,-376.31027588,0.00019888,2]
[359982336,1746461655040,-37.03672346,0.00019888,2]
[359982337,1746461655050,-450.0,0.00019888,2]
[359982338,1746461655059,-81.34327654,0.00019888,2]
[359982339,1746461655071,-368.65672346,0.00019888,2]
[359982340,1746461655080,-81.34327654,0.00019888,2]
[359982341,1746461655091,-368.65672346,0.00019888,2]
[359982342,1746461655102,-81.34327654,0.00019889,2]
[359982343,1746461655113,-450.0,0.00019889,2]
[359982344,1746461655125,-450.0,0.00019889,2]
[359982345,1746461655136,-630.9,0.00019889,2]
[359982346,1746461655148,-630.9,0.00019889,2]
[359982347,1746461655159,-450.0,0.00019889,2]
[359982348,1746461655172,-376.84659456,0.00019889,2]
[359982349,1746461655181,-73.15340544,0.00019889,2]
[359982350,1746461655193,-1625.64,0.00019889,2]
[359982351,1746461655204,-450.0,0.00019889,2]
[359982352,1746461655218,-450.0,0.00019889,2]
[359982353,1746461655229,-450.0,0.00019889,2]
[359982354,1746461655240,-423.79,0.00019889,2]
[359982355,1746461655251,-450.0,0.00019889,2]
[359982356,1746461655262,-450.0,0.00019889,2]
[359982357,1746461655273,-450.0,0.00019889,2]
[359982358,1746461655284,-3069.9898711,0.00019889,2]
[359982359,1746461655296,-450.0,0.00019889,2]
[359982360,1746461655307,-531.0411375,0.00019889,2]
[359982361,1746461655316,-450.0,0.00019889,2]
[359982362,1746461655326,-1011.67,0.00019889,2]
[359982363,1746461655336,-532.36,0.00019889,2]
[359982364,1746461655348,-564.67,0.00019889,2]
[359982365,1746461655357,-450.0,0.00019889,2]
[359982366,1746461655368,-450.0,0.00019889,2]
[359982367,1746461655377,-450.0,0.00019889,2]
[359982368,1746461655387,-798.81,0.00019889,2]
[359982369,1746461655396,-450.0,0.00019889,2]
[359982370,1746461655406,-450.0,0.00019889,2]
[359982371,1746461655416,-450.0,0.00019889,2]
[359982372,1746461655425,-450.0,0.00019889,2]
[359982373,1746461655436,-504.9,0.00019889,2]
[359982374,1746461655446,-266.29,0.00019889,2]
[359982375,1746461655456,-107.1288625,0.00019889,2]
[359982376,1746461655468,-342.8711375,0.00019889,2]
[359982377,1746461655478,-507.81,0.00019889,2]
[359982378,1746461655487,-500.0,0.0001989,2]
[359982379,1746461655496,-6566.1888625,0.00019891,2]
[359982380,1746461655507,-464.94,0.00019891,2]
[359982381,1746461655518,-500.0,0.00019891,2]
[359982382,1746461655541,-450.0,0.00019844,2]
[359982383,1746461655552,-150.0,0.00019891,2]
[359982384,1746461655596,-150.0,0.00019891,2]
[359982385,1746461655622,-1034.38,0.00019891,2]
[359982386,1746461655633,-150.0,0.00019891,2]
[359982387,1746461655644,-568.38,0.00019891,2]
[359982388,1746461655655,-450.0,0.00019891,2]
[359982389,1746461655667,-477.67,0.00019891,2]
[359982390,1746461655678,-450.0,0.00019891,2]
[359982391,1746461655689,-630.9,0.00019891,2]
[359982392,1746461655700,-450.0,0.00019891,2]
[359982393,1746461655713,-450.0,0.00019891,2]
[359982394,1746461655726,-7.5411375,0.00019891,2]
[359982395,1746461655737,-442.4588625,0.00019891,2]
[359982396,1746461655751,-450.0,0.00019891,2]
[359982397,1746461655763,-450.0,0.00019891,2]
[359982398,1746461655779,-450.0,0.00019891,2]
[359982399,1746461655791,-151.0,0.00019891,2]
[359982400,1746461655803,-450.0,0.00019891,2]
[359982401,1746461655816,-568.38,0.00019891,2]
[359982402,1746461655847,-450.0,0.00019891,2]
[359982403,1746461655859,-450.0,0.00019891,2]
[359982404,1746461655870,-450.0,0.00019891,2]
[359982405,1746461655883,-3069.9898711,0.00019891,2]
[359982406,1746461655894,-2089.51835513,0.00019891,2]
[359982407,1746461655906,-450.0,0.00019891,2]
[359982408,1746461655917,-450.0,0.00019891,2]
[359982409,1746461655929,-434.64958771,0.00019891,2]
[359982410,1746461655941,-568.38,0.00019891,2]
[359982411,1746461655952,-450.0,0.00019891,2]
[359982412,1746461655973,-450.0,0.00019891,2]
[359982413,1746461655984,-225.62332356,0.00019891,2]
[359982414,1746461655994,-500.0,0.00019895,2]
[359982415,1746461656004,-482.59,0.00019895,2]
[359982416,1746461656014,-417.42667644,0.00019895,2]
[359982417,1746461656026,-32.57332356,0.00019895,2]
[359982418,1746461656035,-417.42667644,0.00019895,2]
[359982419,1746461656047,-47.51332356,0.00019895,2]
[359982420,1746461656057,-402.48667644,0.00019895,2]
[359982421,1746461656068,-86.92896737,0.00019895,2]
[359982422,1746461656077,-77.2584724,0.00019895,2]
[359982423,1746461656089,-372.7415276,0.00019895,2]
[359982424,1746461656098,-2697.2483435,0.00019896,2]
[359982425,1746461656109,-7916.87,0.00019896,2]
[359982426,1746461656123,-450.0,0.00019896,2]
[359982427,1746461656135,-548.73087827,0.00019896,2]
[359982428,1746461656146,-150.0,0.00019896,2]
[359982429,1746461656157,-150.0,0.00019896,2]
[359982430,1746461656168,-1473.68556978,0.00019896,2]
[359982431,1746461656179,-2089.51835513,0.00019896,2]
[359982432,1746461656190,-1141.0,0.00019896,2]
[359982433,1746461656201,-5931.0,0.00019896,2]
[359982434,1746461656213,-14486.52685332,0.00019896,2]
[359982435,1746461656223,-450.0,0.00019896,2]
[359982436,1746461656233,-1034.38,0.00019896,2]
[359982437,1746461656242,-630.9,0.00019896,2]
[359982438,1746461656252,-450.0,0.00019896,2]
[359982439,1746461656262,-19982.77314668,0.00019897,2]
[359982440,1746461656280,-500.0,0.00019897,2]
[359982441,1746461656291,-450.0,0.00019897,2]
[359982442,1746461656303,-482.59,0.00019897,2]
[359982443,1746461656314,-450.0,0.00019897,2]
[359982444,1746461656326,-464.94,0.00019897,2]
[359982445,1746461656337,-1034.38,0.00019897,2]
[359982446,1746461656349,-450.0,0.00019897,2]
[359982447,1746461656361,-630.9,0.00019897,2]
[359982448,1746461656372,-450.0,0.00019897,2]
[359982449,1746461656383,-450.0,0.00019897,2]
[359982450,1746461656394,-150.0,0.00019897,2]
[359982451,1746461656406,-550.0,0.00019897,2]
[359982452,1746461656417,-228.63073638,0.00019897,2]
[359982453,1746461656431,-150.0,0.00019897,2]
[359982454,1746461656443,-150.0,0.00019897,2]
[359982455,1746461656466,-798.81,0.00019897,2]
[359982456,1746461656477,-450.0,0.00019897,2]
[359982457,1746461656489,-450.0,0.00019897,2]
[359982458,1746461656501,-504.9,0.00019897,2]
[359982459,1746461656513,-450.0,0.00019897,2]
[359982460,1746461656524,-450.0,0.00019897,2]
[359982461,1746461656537,-507.81,0.00019897,2]
[359982462,1746461656548,-450.0,0.00019897,2]
[359982463,1746461656559,-4304.23493,0.00019897,2]
[359982464,1746461656570,-1011.67,0.00019897,2]
[359982465,1746461656581,-532.36,0.00019897,2]
[359982466,1746461656593,-226.54749,0.00019897,2]
[359982467,1746461656605,-564.67,0.00019897,2]
[359982468,1746461656617,-613.230198,0.00019897,2]
[359982469,1746461729815,-372.3520856,0.0001973,2]
[359982470,1746461729845,-150.0,0.00019803,2]
[359982471,1746461729878,-150.0,0.00019815,2]
[359982472,1746461729906,-160.87177424,0.00019837,2]
[359982473,1746461729936,-300.0,0.00019843,2]
[359982474,1746461729965,-1200.0,0.00019843,2]
[359982475,1746461729992,-300.0,0.00019843,2]
[359982476,1746461730033,-450.0,0.00019844,2]
[359982477,1746461730062,-272.83,0.00019844,2]
[359982478,1746461730092,-450.0,0.00019844,2]
[359982479,1746461730326,-2508.1,0.00019844,2]
[359982480,1746461730360,-1987.65,0.00019844,2]
[359982481,1746461730389,-450.0,0.00019844,2]
[359982482,1746461730418,-450.0,0.00019844,2]
[359982483,1746461730449,-450.0,0.00019844,2]
[359982484,1746461730478,-450.0,0.00019844,2]
[359982485,1746461730507,-450.0,0.00019844,2]
[359982486,1746461730534,-595.64,0.00019844,2]
[359982487,1746461730561,-450.0,0.00019844,2]
[359982488,1746461730591,-450.0,0.00019844,2]
[359982489,1746461730619,-450.0,0.00019844,2]
[359982490,1746461730660,-450.0,0.00019844,2]
[359982491,1746461730689,-450.0,0.00019844,2]
[359982492,1746461730720,-450.0,0.00019844,2]
[359982493,1746461730752,-450.0,0.00019844,2]
[359982494,1746461730781,-450.0,0.00019844,2]
[359982495,1746461730809,-1534.66,0.00019844,2]
[359982496,1746461730839,-450.0,0.00019844,2]
[359982497,1746461730867,-450.0,0.00019844,2]
[359982498,1746461730897,-450.0,0.00019844,2]
[359982499,1746461730928,-450.0,0.00019844,2]
[359982500,1746461730958,-1501.03,0.00019844,2]
[359982501,1746461730988,-450.0,0.00019844,2]
[359982502,1746461731017,-450.0,0.00019844,2]
[359982503,1746461731045,-450.0,0.00019844,2]
[359982504,1746461731074,-450.0,0.00019844,2]
[359982505,1746461731103,-758.26,0.00019844,2]
[359982506,1746461731131,-450.0,0.00019844,2]
[359982507,1746461731160,-450.0,0.00019844,2]
[359982508,1746461731192,-450.0,0.00019844,2]
[359982509,1746461731220,-450.0,0.00019844,2]
[359982510,1746461731248,-450.0,0.00019844,2]
[359982511,1746461731275,-450.0,0.00019844,2]
[359982512,1746461731303,-450.0,0.00019844,2]
[359982513,1746461731336,-1112.77,0.00019844,2]
[359982514,1746461731366,-450.0,0.00019844,2]
[359982515,1746461731392,-450.0,0.00019844,2]
[359982516,1746461731420,-537.38532425,0.00019844,2]
[359982517,1746461731447,-1576.98,0.00019844,2]
[359982518,1746461731474,-450.0,0.00019844,2]
[359982519,1746461731502,-450.0,0.00019844,2]
[359982520,1746461731530,-547.98,0.00019844,2]
[359982521,1746461731557,-450.0,0.00019844,2]
[359982522,1746461731584,-26232.82,0.00019844,2]
[359982523,1746461731612,-17090.76773182,0.00019844,2]
[359982524,1746461785282,1419.25,0.00027397,120]
[359982525,1746461787711,-355.9172952,0.0001973,2]
[359982526,1746461787741,-150.0,0.00019733,2]
[359982527,1746461787774,-150.0,0.00019736,2]
[359982528,1746461787804,-150.0,0.00019792,2]
[359982529,1746461787834,-150.0,0.0001982,2]
[359982530,1746461787863,-242.04284922,0.00019823,2]
[359982531,1746461787893,-16449.59226818,0.00019844,2]
[359982532,1746461787921,-450.0,0.00019844,2]
[359982533,1746461787950,-450.0,0.00019844,2]
[359982534,1746461787979,-450.0,0.00019844,2]
[359982535,1746461788006,-450.0,0.00019844,2]
[359982536,1746461788035,-450.0,0.00019844,2]
[359982537,1746461788062,-450.0,0.00019844,2]
[359982538,1746461788089,-450.0,0.00019844,2]
[359982539,1746461788118,-695.36,0.00019844,2]
[359982540,1746461788148,-450.0,0.00019844,2]
[359982541,1746461788177,-2477.91,0.00019844,2]
[359982542,1746461788203,-1071.49686378,0.00019844,2]
[359982543,1746461788229,-177.70613023,0.00019844,2]
[359982544,1746461788256,-11717.04,0.00019844,2]
[359982545,1746461788284,-450.0,0.00019844,2]
[359982546,1746461788311,-450.0,0.00019844,2]
[359982547,1746461788341,-450.0,0.00019844,2]
[359982548,1746461788367,-450.0,0.00019844,2]
[359982549,1746461788394,-450.0,0.00019844,2]
[359982550,1746461788422,-709.9,0.00019844,2]
[359982551,1746461788451,-450.0,0.00019844,2]
[359982552,1746461788479,-450.0,0.00019844,2]
[359982553,1746461788508,-450.0,0.00019844,2]
[359982554,1746461788537,-450.0,0.00019844,2]
[359982555,1746461788566,-682.61,0.00019844,2]
[359982556,1746461788596,-450.0,0.00019844,2]
[359982557,1746461788626,-450.0,0.00019844,2]
[359982558,1746461788655,-450.0,0.00019844,2]
[359982559,1746461788685,-1034.99918678,0.00019844,2]
[359982560,1746461849449,-338.1214304,0.0001973,2]
[359982561,1746461849472,-217.37739502,0.00019739,2]
[359982562,1746461849695,-6307.4376,0.00019754,2]
[359982563,1746461849717,-300.0,0.00019754,2]
[359982564,1746461849737,-76302.2181,0.00019756,2]
[359982565,1746461849760,-150.0,0.00019819,2]
[359982566,1746461849785,-150.0,0.00019822,2]
[359982567,1746461849807,-207.4,0.00019843,2]
[359982568,1746461849829,-704.20081322,0.00019844,2]
[359982569,1746461849849,-450.0,0.00019844,2]
[359982570,1746461849872,-450.0,0.00019844,2]
[359982571,1746461849893,-3761.91,0.00019844,2]
[359982572,1746461849915,-450.0,0.00019844,2]
[359982573,1746461849936,-450.0,0.00019844,2]
[359982574,1746461849958,-450.0,0.00019844,2]
[359982575,1746461849978,-450.0,0.00019844,2]
[359982576,1746461850000,-450.0,0.00019844,2]
[359982577,1746461850023,-450.0,0.00019844,2]
[359982578,1746461850044,-450.0,0.00019844,2]
[359982579,1746461850066,-450.0,0.00019844,2]
[359982580,1746461850091,-450.0,0.00019844,2]
[359982581,1746461850113,-450.0,0.00019844,2]
[359982582,1746461850135,-450.0,0.00019844,2]
[359982583,1746461850156,-450.0,0.00019844,2]
[359982584,1746461850178,-803.42,0.00019844,2]
[359982585,1746461850200,-599.76163364,0.00019844,2]
[359982586,1746461850221,-450.0,0.00019844,2]
[359982587,1746461850243,-6126.92,0.00019844,2]
[359982588,1746461850264,-450.0,0.00019844,2]
[359982589,1746461850285,-151.0,0.00019844,2]
[359982590,1746461850305,-450.0,0.00019844,2]
[359982591,1746461850327,-450.0,0.00019844,2]
[359982592,1746461850348,-573.07,0.00019844,2]
[359982593,1746461850369,-450.0,0.00019844,2]
[359982594,1746461850389,-450.0,0.00019844,2]
[359982595,1746461850410,-450.0,0.00019844,2]
[359982596,1746461850431,-500.0,0.00019844,2]
[359982597,1746461850455,-450.0,0.00019844,2]
[359982598,1746461850476,-450.0,0.00019844,2]
[359982599,1746461850498,-450.0,0.00019844,2]
[359982600,1746461850520,-450.0,0.00019844,2]
[359982601,1746461850543,-150.0,0.00019845,2]
[359982602,1746461850564,-200.0,0.00019847,2]
[359982603,1746461850588,-200.0,0.0001985,2]
[359982604,1746461850609,-283.66463137,0.00019851,2]
[359982605,1746461850634,-150.0,0.00019851,2]
[359982606,1746461850658,-1000.0,0.00019852,2]
[359982607,1746461850681,-450.0,0.00019852,2]
[359982608,1746461850702,-450.0,0.00019852,2]
[359982609,1746461850726,-2508.1,0.00019852,2]
[359982610,1746461850748,-1987.65,0.00019852,2]
[359982611,1746461850770,-450.0,0.00019852,2]
[359982612,1746461850795,-450.0,0.00019852,2]
[359982613,1746461850817,-300.13851652,0.00019852,2]
[359982614,1746461850839,-1534.66,0.00019852,2]
[359982615,1746461850864,-450.0,0.00019852,2]
[359982616,1746461850885,-1501.03,0.00019852,2]
[359982617,1746461850909,-450.0,0.00019852,2]
[359982618,1746461850932,-450.0,0.00019852,2]
[359982619,1746461850955,-758.26,0.00019852,2]
[359982620,1746461850977,-450.0,0.00019852,2]
[359982621,1746461850998,-450.0,0.00019852,2]
[359982622,1746461851020,-450.0,0.00019852,2]
[359982623,1746461851044,-1112.77,0.00019852,2]
[359982624,1746461851066,-480.66355531,0.00019852,2]
[359982625,1746461851088,-1576.98,0.00019852,2]
[359982626,1746461851112,-450.0,0.00019852,2]
[359982627,1746461851135,-450.0,0.00019852,2]
[359982628,1746461851159,-26232.82,0.00019852,2]
[359982629,1746461851180,-33540.36,0.00019852,2]
[359982630,1746461851201,-450.0,0.00019852,2]
[359982631,1746461851235,-450.0,0.00019852,2]
[359982632,1746461851258,-450.0,0.00019852,2]
[359982633,1746461851279,-450.0,0.00019852,2]
[359982634,1746461851302,-450.0,0.00019852,2]
[359982635,1746461851326,-695.36,0.00019852,2]
[359982636,1746461851348,-2477.91,0.00019852,2]
[359982637,1746461851372,-573.97,0.00019852,2]
[359982638,1746461851394,-11717.04,0.00019852,2]
[359982639,1746461851416,-450.0,0.00019852,2]
[359982640,1746461851439,-450.0,0.00019852,2]
[359982641,1746461851463,-709.9,0.00019852,2]
[359982642,1746461851484,-450.0,0.00019852,2]
[359982643,1746461851505,-450.0,0.00019852,2]
[359982644,1746461851528,-500.0,0.00019852,2]
[359982645,1746461851549,-682.61,0.00019852,2]
[359982646,1746461851570,-450.0,0.00019852,2]
[359982647,1746461851592,-1739.2,0.00019852,2]
[359982648,1746461851613,-450.0,0.00019852,2]
[359982649,1746461851635,-3761.91,0.00019852,2]
[359982650,1746461851660,-450.0,0.00019852,2]
[359982651,1746461851682,-450.0,0.00019852,2]
[359982652,1746461851704,-450.0,0.00019852,2]
[359982653,1746461851725,-450.0,0.00019852,2]
[359982654,1746461851747,-450.0,0.00019852,2]
[359982655,1746461851771,-450.0,0.00019852,2]
[359982656,1746461851796,-450.0,0.00019852,2]
[359982657,1746461851817,-205.57904787,0.00019852,2]
[359982658,1746461851838,-450.0,0.00019852,2]
[359982659,1746461851862,-803.42,0.00019852,2]
[359982660,1746461851884,-450.0,0.00019852,2]
[359982661,1746461851905,-6126.92,0.00019852,2]
[359982662,1746461851926,-450.0,0.00019852,2]
[359982663,1746461851948,-450.0,0.00019852,2]
[359982664,1746461851970,-450.0,0.00019852,2]
[359982665,1746461851992,-450.0,0.00019852,2]
[359982666,1746461852014,-573.07,0.00019852,2]
[359982667,1746461852037,-450.0,0.00019852,2]
[359982668,1746461852060,-450.0,0.00019852,2]
[359982669,1746461852083,-450.0,0.00019852,2]
[359982670,1746461852105,-450.0,0.00019852,2]
[359982671,1746461852128,-500.0,0.00019852,2]
[359982672,1746461852150,-450.0,0.00019852,2]
[359982673,1746461852171,-450.0,0.00019852,2]
[359982674,1746461852193,-450.0,0.00019852,2]
[359982675,1746461852215,-450.0,0.00019852,2]
[359982676,1746461852237,-450.0,0.00019852,2]
[359982677,1746461852259,-450.0,0.00019852,2]
[359982678,1746461852283,-500.0,0.00019852,2]
[359982679,1746461852308,-500.0,0.00019852,2]
[359982680,1746461852336,-500.0,0.00019852,2]
[359982681,1746461852359,-500.0,0.00019852,2]
[359982682,1746461852386,-500.0,0.00019852,2]
[359982683,1746461852406,-524.44504459,0.00019852,2]
[359982684,1746461852428,-500.0,0.00019852,2]
[359982685,1746461852454,-500.0,0.00019852,2]
[359982686,1746461852476,-500.0,0.00019852,2]
[359982687,1746461852528,-252.217496,0.00019852,2]
[359982688,1746461852571,-500.0,0.00019852,2]
[359982689,1746461852593,-267.98385234,0.00019852,2]
[359982690,1746461852621,-500.0,0.00019852,2]
[359982691,1746461852648,-500.0,0.00019852,2]
[359982692,1746461852675,-500.0,0.00019852,2]
[359982693,1746461852702,-500.0,0.00019852,2]
[359982694,1746461852729,-500.0,0.00019852,2]
[359982695,1746461852760,-500.0,0.00019852,2]
[359982696,1746461852794,-500.0,0.00019852,2]
[359982697,1746461852828,-500.0,0.00019852,2]
[359982698,1746461852861,-500.0,0.00019852,2]
[359982699,1746461852892,-500.0,0.00019852,2]
[359982700,1746461852921,-500.0,0.00019852,2]
[359982701,1746461852950,-500.0,0.00019852,2]
[359982702,1746461853177,-500.0,0.00019852,2]
[359982703,1746461853209,-500.0,0.00019852,2]
[359982704,1746461853238,-500.0,0.00019852,2]
[359982705,1746461853265,-500.0,0.00019852,2]
[359982706,1746461853294,-500.0,0.00019852,2]
[359982707,1746461853325,-500.0,0.00019852,2]
[359982708,1746461853353,-500.0,0.00019852,2]
[359982709,1746461853383,-500.0,0.00019852,2]
[359982710,1746461853418,-500.0,0.00019852,2]
[359982711,1746461853446,-500.0,0.00019852,2]
[359982712,1746461853469,-318.47,0.00019853,2]
[359982713,1746461853490,-599.66,0.00019853,2]
[359982714,1746461853514,-187.07347,0.00019853,2]
[359982715,1746461853537,-595.64,0.00019853,2]
[359982716,1746461853559,-450.0,0.00019853,2]
[359982717,1746461853580,-450.0,0.00019853,2]
[359982718,1746461853603,-155.37,0.00019853,2]
[359982719,1746461853624,-450.0,0.00019853,2]
[359982720,1746461853647,-517.89082003,0.00019853,2]
[359982721,1746461853676,-450.0,0.00019853,2]
[359982722,1746461853699,-450.0,0.00019853,2]
[359982723,1746461853722,-450.0,0.00019853,2]
[359982724,1746461853745,-450.0,0.00019853,2]
[359982725,1746461853767,-450.0,0.00019853,2]
[359982726,1746461853794,-547.98,0.00019853,2]
[359982727,1746461853816,-418.80591143,0.00019853,2]
[359982728,1746461853838,-450.0,0.00019853,2]
[359982729,1746461853860,-450.0,0.00019853,2]
[359982730,1746461853883,-450.0,0.00019853,2]
[359982731,1746461853907,-325.751762,0.00019853,2]
[359982732,1746461853930,-450.0,0.00019853,2]
[359982733,1746461853953,-450.0,0.00019853,2]
[359982734,1746461853975,-450.0,0.00019853,2]
[359982735,1746461854003,-450.0,0.00019853,2]
[359982736,1746461854026,-7717.875436,0.00019853,2]
[359982737,1746461854048,-502.73,0.00019853,2]
[359982738,1746461854071,-187.07347,0.00019853,2]
[359982739,1746461854094,-450.0,0.00019853,2]
[359982740,1746461854117,-519.82,0.00019853,2]
[359982741,1746461854140,-450.0,0.00019853,2]
[359982742,1746461854164,-450.0,0.00019854,2]
[359982743,1746461854189,-2508.1,0.00019854,2]
[359982744,1746461854212,-2508.1,0.00019854,2]
[359982745,1746461854235,-1987.65,0.00019854,2]
[359982746,1746461854257,-1987.65,0.00019854,2]
[359982747,1746461854279,-450.0,0.00019854,2]
[359982748,1746461854302,-450.0,0.00019854,2]
[359982749,1746461854324,-595.64,0.00019854,2]
[359982750,1746461854346,-450.0,0.00019854,2]
[359982751,1746461854368,-450.0,0.00019854,2]
[359982752,1746461854390,-1534.66,0.00019854,2]
[359982753,1746461854412,-1534.66,0.00019854,2]
[359982754,1746461854433,-450.0,0.00019854,2]
[359982755,1746461854454,-450.0,0.00019854,2]
[359982756,1746461854476,-1501.03,0.00019854,2]
[359982757,1746461854502,-1501.03,0.00019854,2]
[359982758,1746461854524,-552.73946429,0.00019854,2]
[359982759,1746461854546,-450.0,0.00019854,2]
[359982760,1746461854568,-450.0,0.00019854,2]
[359982761,1746461854589,-758.26,0.00019854,2]
[359982762,1746461854610,-758.26,0.00019854,2]
[359982763,1746461854631,-450.0,0.00019854,2]
[359982764,1746461854655,-450.0,0.00019854,2]
[359982765,1746461854678,-450.0,0.00019854,2]
[359982766,1746461854700,-450.0,0.00019854,2]
[359982767,1746461854724,-450.0,0.00019854,2]
[359982768,1746461854746,-450.0,0.00019854,2]
[359982769,1746461854769,-450.0,0.00019854,2]
[359982770,1746461854797,-1112.77,0.00019854,2]
[359982771,1746461854821,-1112.77,0.00019854,2]
[359982772,1746461854843,-1576.98,0.00019854,2]
[359982773,1746461854867,-1576.98,0.00019854,2]
[359982774,1746461854888,-450.0,0.00019854,2]
[359982775,1746461854910,-527.37,0.00019854,2]
[359982776,1746461854932,-450.0,0.00019854,2]
[359982777,1746461854954,-547.98,0.00019854,2]
[359982778,1746461854976,-26232.82,0.00019854,2]
[359982779,1746461855039,-26232.82,0.00019854,2]
[359982780,1746461855063,-33540.36,0.00019854,2]
[359982781,1746461855086,-6999.24524997,0.00019854,2]
[359982782,1746461894958,-321.2153589,0.0001973,2]
[359982783,1746461894989,-213.14676438,0.00019754,2]
[359982784,1746461895023,-213.14676432,0.00019775,2]
[359982785,1746461895055,-213.14676432,0.00019796,2]
[359982786,1746461895083,-213.14676432,0.00019817,2]
[359982787,1746461895107,-213.14676432,0.00019837,2]
[359982788,1746461895137,-850.0,0.00019843,2]
[359982789,1746461895164,-450.0,0.00019844,2]
[359982790,1746461895192,-450.0,0.00019844,2]
[359982791,1746461895220,-450.0,0.00019844,2]
[359982792,1746461895247,-450.0,0.00019844,2]
[359982793,1746461895275,-500.0,0.00019844,2]
[359982794,1746461895305,-500.0,0.00019844,2]
[359982795,1746461895332,-450.0,0.00019844,2]
[359982796,1746461895359,-450.0,0.00019844,2]
[359982797,1746461895392,-450.0,0.00019844,2]
[359982798,1746461895420,-450.0,0.00019844,2]
[359982799,1746461895444,-1656.37,0.00019844,2]
[359982800,1746461895470,-450.0,0.00019844,2]
[359982801,1746461895500,-450.0,0.00019844,2]
[359982802,1746461895524,-450.0,0.00019844,2]
[359982803,1746461895550,-450.0,0.00019852,2]
[359982804,1746461895578,-450.0,0.00019852,2]
[359982805,1746461895603,-450.0,0.00019852,2]
[359982806,1746461895630,-450.0,0.00019852,2]
[359982807,1746461895661,-500.0,0.00019852,2]
[359982808,1746461895689,-450.0,0.00019852,2]
[359982809,1746461895717,-450.0,0.00019852,2]
[359982810,1746461895745,-1656.37,0.00019852,2]
[359982811,1746461895772,-450.0,0.00019852,2]
[359982812,1746461895801,-450.0,0.00019852,2]
[359982813,1746461895828,-450.0,0.00019852,2]
[359982814,1746461895853,-450.0,0.00019852,2]
[359982815,1746461895896,-450.0,0.00019852,2]
[359982816,1746461895930,-450.0,0.00019853,2]
[359982817,1746461895962,-450.0,0.00019853,2]
[359982818,1746461895992,-26541.11475003,0.00019854,2]
[359982819,1746461896021,-560.07192061,0.00019854,2]
[359982820,1746461896050,-450.0,0.00019854,2]
[359982821,1746461896081,-450.0,0.00019854,2]
[359982822,1746461896109,-450.0,0.00019854,2]
[359982823,1746461896138,-450.0,0.00019854,2]
[359982824,1746461896165,-450.0,0.00019854,2]
[359982825,1746461896193,-450.0,0.00019854,2]
[359982826,1746461896220,-359.53904925,0.00019854,2]
[359982827,1746461896246,-695.36,0.00019854,2]
[359982828,1746461896272,-695.36,0.00019854,2]
[359982829,1746461896296,-450.0,0.00019854,2]
[359982830,1746461896323,-2477.91,0.00019854,2]
[359982831,1746461896354,-2477.91,0.00019854,2]
[359982832,1746461896382,-11717.04,0.00019854,2]
[359982833,1746461896409,-11717.04,0.00019854,2]
[359982834,1746461896437,-450.0,0.00019854,2]